fUST/lending_fUST_20250529
["ID","MTS","AMOUNT","RATE_DAILY","PERIOD"]
[362825674,1748473840330,-516.51,0.00020819,2]
[362825675,1748473840339,-430.0,0.00020819,2]
[362825676,1748473840348,-521.68,0.00020819,2]
[362825677,1748473840357,-430.0,0.00020819,2]
[362825678,1748473840367,-575.86,0.00020819,2]
[362825679,1748473840376,-430.0,0.00020819,2]
[362825680,1748473840385,-430.0,0.0002082,2]
[362825681,1748473840398,-238.24,0.0002082,2]
[362825682,1748473840407,-430.0,0.0002082,2]
[362825683,1748473840416,-430.0,0.00020821,2]
[362825684,1748473840425,-1240.4,0.00020821,2]
[362825685,1748473840435,-430.0,0.00020821,2]
[362825686,1748473840444,-430.0,0.00020821,2]
[362825687,1748473840453,-430.0,0.00020821,2]
[362825688,1748473840462,-465.2,0.00020821,2]
[362825689,1748473840472,-298.22,0.00020821,2]
[362825690,1748473840481,-430.0,0.00020821,2]
[362825691,1748473840491,-411.25,0.00020821,2]
[362825692,1748473840500,-560.57,0.00020821,2]
[362825693,1748473840509,-430.0,0.00020821,2]
[362825694,1748473840519,-430.0,0.00020821,2]
[362825695,1748473840529,-430.0,0.00020821,2]
[362825696,1748473840539,-430.0,0.00020821,2]
[362825697,1748473840548,-430.0,0.00020821,2]
[362825698,1748473840557,-1148.24,0.00020821,2]
[362825699,1748473840568,-601.35257925,0.00020969,4]
[362825700,1748473840577,-3000.0,0.00021,2]
[362825701,1748473840587,-3000.0,0.0002101,2]
[362825702,1748473840596,-500.0,0.00021015,2]
[362825703,1748473840606,-3000.0,0.0002102,2]
[362825704,1748473840616,-3601.21,0.00021023,2]
[362825705,1748473840626,-3000.0,0.0002103,2]
[362825706,1748473840638,-3000.0,0.0002104,2]
[362825707,1748473840650,-3000.0,0.0002105,2]
[362825708,1748473840660,-3000.0,0.0002106,2]
[362825709,1748473840671,-3000.0,0.0002107,2]
[362825710,1748473840681,-434.01679854,0.0002107,2]
[362825711,1748473840690,-3000.0,0.0002108,2]
[362825712,1748473840700,-3000.0,0.0002109,2]
[362825713,1748473840710,-301.61946089,0.00021092,2]
[362825714,1748473840720,-430.0,0.00021092,2]
[362825715,1748473840730,-182.54,0.00021092,2]
[362825716,1748473840740,-430.0,0.00021092,2]
[362825717,1748473840750,-430.0,0.00021092,2]
[362825718,1748473840761,-564.51936208,0.00021092,2]
[362825719,1748473840770,-430.0,0.00021092,2]
[362825720,1748473840780,-430.0,0.00021092,2]
[362825721,1748473840789,-430.0,0.00021092,2]
[362825722,1748473840798,-430.0,0.00021092,2]
[362825723,1748473840809,-160.0,0.00021092,2]
[362825724,1748473840819,-430.0,0.00021093,2]
[362825725,1748473840828,-516.51,0.00021093,2]
[362825726,1748473840838,-430.0,0.00021093,2]
[362825727,1748473840848,-521.68,0.00021093,2]
[362825728,1748473840857,-430.0,0.00021093,2]
[362825729,1748473840867,-575.86,0.00021093,2]
[362825730,1748473840876,-430.0,0.00021093,2]
[362825731,1748473840886,-430.0,0.00021094,2]
[362825732,1748473840898,-430.0,0.00021094,2]
[362825733,1748473840907,-430.0,0.00021095,2]
[362825734,1748473840916,-1240.4,0.00021095,2]
[362825735,1748473840926,-430.0,0.00021095,2]
[362825736,1748473840935,-430.0,0.00021095,2]
[362825737,1748473840944,-430.0,0.00021095,2]
[362825738,1748473840953,-465.2,0.00021095,2]
[362825739,1748473840963,-430.0,0.00021095,2]
[362825740,1748473840972,-560.57,0.00021095,2]
[362825741,1748473840982,-430.0,0.00021095,2]
[362825742,1748473840991,-430.0,0.00021095,2]
[362825743,1748473841000,-430.0,0.00021095,2]
[362825744,1748473841010,-430.0,0.00021095,2]
[362825745,1748473841019,-430.0,0.00021095,2]
[362825746,1748473841029,-1148.24,0.00021095,2]
[362825747,1748473841038,-3000.0,0.000211,2]
[362825748,1748473841048,-3000.0,0.0002111,2]
[362825749,1748473841058,-3000.0,0.0002112,2]
[362825750,1748473841067,-3000.0,0.0002113,2]
[362825751,1748473841077,-3000.0,0.0002114,2]
[362825752,1748473841087,-3000.0,0.0002115,2]
[362825753,1748473841096,-3000.0,0.0002116,2]
[362825754,1748473841105,-700.0,0.00021164,2]
[362825755,1748473841114,-3000.0,0.0002117,2]
[362825756,1748473841124,-601.35257925,0.00021176,4]
[362825757,1748473841133,-3000.0,0.0002118,2]
[362825758,1748473841145,-3000.0,0.0002119,2]
[362825759,1748473841154,-3000.0,0.000212,2]
[362825760,1748473841163,-3000.0,0.0002121,2]
[362825761,1748473841173,-3000.0,0.0002122,2]
[362825762,1748473841182,-3000.0,0.0002123,2]
[362825763,1748473841191,-3000.0,0.0002124,2]
[362825764,1748473841200,-500.0,0.00021242,2]
[362825765,1748473841210,-1000.0,0.00021242,2]
[362825766,1748473841219,-3000.0,0.0002125,2]
[362825767,1748473841230,-3000.0,0.0002126,2]
[362825768,1748473841239,-3000.0,0.0002127,2]
[362825769,1748473841249,-3000.0,0.0002128,2]
[362825770,1748473841259,-3000.0,0.0002129,2]
[362825771,1748473841268,-3000.0,0.000213,2]
[362825772,1748473841277,-3000.0,0.0002131,2]
[362825773,1748473841286,-3000.0,0.0002132,2]
[362825774,1748473841296,-3000.0,0.0002133,2]
[362825775,1748473841305,-3000.0,0.0002134,2]
[362825776,1748473841314,-3000.0,0.0002135,2]
[362825777,1748473841324,-3000.0,0.0002136,2]
[362825778,1748473841334,-202.66,0.00021366,2]
[362825779,1748473841344,-430.0,0.00021366,2]
[362825780,1748473841353,-430.0,0.00021366,2]
[362825781,1748473841363,-430.0,0.00021366,2]
[362825782,1748473841372,-430.0,0.00021366,2]
[362825783,1748473841382,-430.0,0.00021366,2]
[362825784,1748473841393,-430.0,0.00021366,2]
[362825785,1748473841402,-430.0,0.00021367,2]
[362825786,1748473841411,-516.51,0.00021367,2]
[362825787,1748473841420,-430.0,0.00021367,2]
[362825788,1748473841430,-521.68,0.00021367,2]
[362825789,1748473841440,-430.0,0.00021367,2]
[362825790,1748473841449,-575.86,0.00021367,2]
[362825791,1748473841459,-430.0,0.00021367,2]
[362825792,1748473841469,-430.0,0.00021368,2]
[362825793,1748473841478,-570.0,0.00021368,2]
[362825794,1748473841488,-430.0,0.00021369,2]
[362825795,1748473841498,-1240.4,0.00021369,2]
[362825796,1748473841507,-430.0,0.00021369,2]
[362825797,1748473841517,-430.0,0.00021369,2]
[362825798,1748473841526,-430.0,0.00021369,2]
[362825799,1748473841536,-465.2,0.00021369,2]
[362825800,1748473841545,-430.0,0.00021369,2]
[362825801,1748473841555,-560.57,0.00021369,2]
[362825802,1748473841565,-430.0,0.00021369,2]
[362825803,1748473841574,-430.0,0.00021369,2]
[362825804,1748473841584,-430.0,0.00021369,2]
[362825805,1748473841593,-430.0,0.00021369,2]
[362825806,1748473841603,-430.0,0.00021369,2]
[362825807,1748473841612,-1148.24,0.00021369,2]
[362825808,1748473841621,-3611.99168,0.0002137,2]
[362825809,1748473841633,-500.0,0.00021382,2]
[362825810,1748473841645,-601.35257925,0.00021383,5]
[362825811,1748473841654,-5000.0,0.00021436,2]
[362825812,1748473841664,-1000.0,0.00021563,2]
[362825813,1748473841674,-601.35257925,0.0002159,5]
[362825814,1748473841684,-430.0,0.0002164,2]
[362825815,1748473841694,-430.0,0.0002164,2]
[362825816,1748473841703,-430.0,0.0002164,2]
[362825817,1748473841716,-430.0,0.0002164,2]
[362825818,1748473841725,-430.0,0.0002164,2]
[362825819,1748473841734,-430.0,0.0002164,2]
[362825820,1748473841743,-430.0,0.00021641,2]
[362825821,1748473841753,-516.51,0.00021641,2]
[362825822,1748473841762,-430.0,0.00021641,2]
[362825823,1748473841772,-521.68,0.00021641,2]
[362825824,1748473841782,-430.0,0.00021641,2]
[362825825,1748473841792,-575.86,0.00021641,2]
[362825826,1748473841802,-430.0,0.00021641,2]
[362825827,1748473841811,-430.0,0.00021642,2]
[362825828,1748473841821,-430.0,0.00021643,2]
[362825829,1748473841832,-1240.4,0.00021643,2]
[362825830,1748473841841,-430.0,0.00021643,2]
[362825831,1748473841850,-430.0,0.00021643,2]
[362825832,1748473841859,-430.0,0.00021643,2]
[362825833,1748473841869,-465.2,0.00021643,2]
[362825834,1748473841879,-430.0,0.00021643,2]
[362825835,1748473841888,-560.57,0.00021643,2]
[362825836,1748473841901,-430.0,0.00021643,2]
[362825837,1748473841910,-430.0,0.00021643,2]
[362825838,1748473841919,-431.87,0.00021643,2]
[362825839,1748473841929,-362.12502493,0.00021643,2]
[362825840,1748473841938,-430.0,0.00021643,2]
[362825841,1748473841948,-1148.24,0.00021643,2]
[362825842,1748473841957,-170.69696392,0.00021671,2]
[362825843,1748473841967,-420.0,0.00021774,2]
[362825844,1748473841976,-1500.0,0.0002179,2]
[362825845,1748473841986,-601.35257925,0.00021797,6]
[362825846,1748473841995,-1981.69,0.000219,2]
[362825847,1748473842004,-151.14043525,0.000219,2]
[362825848,1748473842014,-430.0,0.00021914,2]
[362825849,1748473842023,-430.0,0.00021914,2]
[362825850,1748473842033,-430.0,0.00021914,2]
[362825851,1748473842043,-430.0,0.00021914,2]
[362825852,1748473842053,-430.0,0.00021914,2]
[362825853,1748473842062,-430.0,0.00021914,2]
[362825854,1748473842071,-430.0,0.00021915,2]
[362825855,1748473842080,-516.51,0.00021915,2]
[362825856,1748473842090,-430.0,0.00021915,2]
[362825857,1748473842191,-521.68,0.00021915,2]
[362825858,1748473842201,-430.0,0.00021915,2]
[362825859,1748473842210,-575.86,0.00021915,2]
[362825860,1748473842220,-430.0,0.00021915,2]
[362825861,1748473842229,-430.0,0.00021916,2]
[362825862,1748473842239,-500.0,0.00021917,2]
[362825863,1748473842249,-430.0,0.00021917,2]
[362825864,1748473842258,-1240.4,0.00021917,2]
[362825865,1748473842267,-430.0,0.00021917,2]
[362825866,1748473842277,-430.0,0.00021917,2]
[362825867,1748473842287,-430.0,0.00021917,2]
[362825868,1748473842296,-465.2,0.00021917,2]
[362825869,1748473842306,-430.0,0.00021917,2]
[362825870,1748473842315,-560.57,0.00021917,2]
[362825871,1748473842324,-430.0,0.00021917,2]
[362825872,1748473842334,-430.0,0.00021917,2]
[362825873,1748473842343,-430.0,0.00021917,2]
[362825874,1748473842353,-1148.24,0.00021917,2]
[362825875,1748473842362,-1000.0,0.0002193,2]
[362825876,1748473842372,-170.69696392,0.00021945,2]
[362825877,1748473842381,-170.6969639,0.00021945,2]
[362825878,1748473842391,-2000.0,0.00021972,2]
[362825879,1748473842400,-2000.0,0.00021972,2]
[362825880,1748473842410,-2000.0,0.00021972,2]
[362825881,1748473842419,-2000.0,0.00021972,2]
[362825882,1748473842429,-2000.0,0.00021972,2]
[362825883,1748473842438,-2000.0,0.00021972,2]
[362825884,1748473842448,-2000.0,0.00021972,2]
[362825885,1748473842458,-2000.0,0.00021972,2]
[362825886,1748473842467,-2000.0,0.00021972,2]
[362825887,1748473842477,-2000.0,0.00021972,2]
[362825888,1748473842486,-2000.0,0.00021972,2]
[362825889,1748473842496,-1467.61371758,0.00021972,2]
[362825890,1748473842505,-500.0,0.00021973,2]
[362825891,1748473842515,-500.0,0.00021973,2]
[362825892,1748473842524,-500.0,0.00021973,2]
[362825893,1748473842534,-500.0,0.00021973,2]
[362825894,1748473842543,-2000.0,0.00022,2]
[362825895,1748473842552,-2000.0,0.00022,2]
[362825896,1748473842563,-1778.1,0.00022,7]
[362825897,1748473842574,-153497.37,0.00022,7]
[362825898,1748473842584,-9406.86,0.00022,2]
[362825899,1748473842594,-4218.72,0.00022,7]
[362825900,1748473842603,-54748.79,0.00022,2]
[362825901,1748473842613,-172.0,0.00022,2]
[362825902,1748473842623,-341.0,0.00022,2]
[362825903,1748473842636,-601.35257925,0.00022003,6]
[362825904,1748473842648,-7202.41,0.00022024,2]
[362825905,1748473842658,-1500.0,0.00022111,2]
[362825906,1748473842668,-12500.0,0.00022138,2]
[362825907,1748473842678,-12500.0,0.00022147,2]
[362825908,1748473842687,-12500.0,0.00022156,2]
[362825909,1748473842697,-12500.0,0.00022165,2]
[362825910,1748473842707,-500.0,0.00022173,2]
[362825911,1748473842717,-500.0,0.00022173,2]
[362825912,1748473842727,-501.1941326,0.00022173,2]
[362825913,1748473842736,-500.0,0.00022173,2]
[362825914,1748473842745,-419.10983659,0.00022173,2]
[362825915,1748473842754,-500.0,0.00022173,2]
[362825916,1748473842764,-600.0,0.00022173,2]
[362825917,1748473842773,-500.0,0.00022173,2]
[362825918,1748473842783,-535.61328147,0.00022173,2]
[362825919,1748473842792,-422.78467075,0.00022173,2]
[362825920,1748473842802,-12500.0,0.00022173,2]
[362825921,1748473842812,-12500.0,0.00022182,2]
[362825922,1748473842822,-12500.0,0.00022182,2]
[362825923,1748473842831,-430.0,0.00022188,2]
[362825924,1748473842840,-577.78,0.00022188,2]
[362825925,1748473842850,-430.0,0.00022188,2]
[362825926,1748473842859,-430.0,0.00022188,2]
[362825927,1748473842868,-430.0,0.00022188,2]
[362825928,1748473842878,-430.0,0.00022188,2]
[362825929,1748473842887,-430.0,0.00022189,2]
[362825930,1748473842900,-516.51,0.00022189,2]
[362825931,1748473842910,-430.0,0.00022189,2]
[362825932,1748473842921,-521.68,0.00022189,2]
[362825933,1748473842931,-430.0,0.00022189,2]
[362825934,1748473842938,-575.86,0.00022189,2]
[362825935,1748473842945,-430.0,0.00022189,2]
[362825936,1748473842952,-568.03,0.0002219,2]
[362825937,1748473842960,-12500.0,0.00022191,2]
[362825938,1748473842968,-12500.0,0.00022191,2]
[362825939,1748473842976,-430.0,0.00022191,2]
[362825940,1748473842983,-1240.4,0.00022191,2]
[362825941,1748473842991,-430.0,0.00022191,2]
[362825942,1748473842997,-430.0,0.00022191,2]
[362825943,1748473843004,-430.0,0.00022191,2]
[362825944,1748473843012,-465.2,0.00022191,2]
[362825945,1748473843022,-430.0,0.00022191,2]
[362825946,1748473843035,-560.57,0.00022191,2]
[362825947,1748473843050,-430.0,0.00022191,2]
[362825948,1748473843060,-430.0,0.00022191,2]
[362825949,1748473843069,-430.0,0.00022191,2]
[362825950,1748473843079,-1148.24,0.00022191,2]
[362825951,1748473843088,-341.0,0.00022192,7]
[362825952,1748473843098,-601.35257925,0.0002221,6]
[362825954,1748473843108,-700.0,0.0002226,2]
[362825955,1748473843117,-961.0,0.00022298,2]
[362825957,1748473843127,-2251.0,0.00022298,2]
[362825959,1748473843137,-708.797,0.00022298,2]
[362825961,1748473843148,-405.0,0.00022298,2]
[362825962,1748473843157,-2000.0,0.00022338,2]
[362825963,1748473843167,-601.35257925,0.00022417,7]
[362825964,1748473843176,-423.72932467,0.00022462,2]
[362825969,1748473843339,-300.0,0.00019998,2]
[362825972,1748473843353,-352.05725676,0.00021776,2]
[362825974,1748473843368,-67.94274324,0.00021776,2]
[362825976,1748473843382,-6.27067533,0.00022462,2]
[362825977,1748473843397,-430.0,0.00022462,2]
[362825978,1748473843408,-430.0,0.00022462,2]
[362825979,1748473843419,-251.30425475,0.00022462,2]
[362825980,1748473843433,-178.69574525,0.00022462,2]
[362825981,1748473843446,-430.0,0.00022462,2]
[362825982,1748473843457,-430.0,0.00022463,2]
[362825983,1748473843470,-516.51,0.00022463,2]
[362825984,1748473843482,-430.0,0.00022463,2]
[362825985,1748473843494,-521.68,0.00022463,2]
[362825986,1748473843506,-430.0,0.00022463,2]
[362825987,1748473843516,-575.86,0.00022463,2]
[362825988,1748473843526,-430.0,0.00022463,2]
[362825989,1748473843537,-500.0,0.00022465,2]
[362825990,1748473843548,-430.0,0.00022465,2]
[362825991,1748473843559,-1240.4,0.00022465,2]
[362825992,1748473843571,-430.0,0.00022465,2]
[362825993,1748473843583,-430.0,0.00022465,2]
[362825994,1748473843596,-430.0,0.00022465,2]
[362825995,1748473843607,-465.2,0.00022465,2]
[362825996,1748473843619,-560.57,0.00022465,2]
[362825997,1748473843633,-430.0,0.00022465,2]
[362825998,1748473843647,-430.0,0.00022465,2]
[362825999,1748473843658,-1148.24,0.00022465,2]
[362826000,1748473843671,-1500.0,0.00022478,2]
[362826001,1748473843683,-1000.0,0.00022521,2]
[362826002,1748473843693,-1000.0,0.00022521,2]
[362826003,1748473843704,-263.30866401,0.00022521,2]
[362826004,1748473843715,-739.89,0.00022547,5]
[362826005,1748473843726,-601.35257925,0.00022624,7]
[362826006,1748473843738,-739.89,0.00022647,5]
[362826007,1748473843752,-2000.0,0.00022659,2]
[362826008,1748473843764,-3549.167381,0.000227,2]
[362826009,1748473843775,-1000.0,0.00022721,2]
[362826010,1748473843785,-1000.0,0.00022721,2]
[362826011,1748473843796,-1000.0,0.00022721,2]
[362826012,1748473843808,-1000.0,0.00022721,2]
[362826013,1748473843819,-1200.0,0.00022721,2]
[362826014,1748473843832,-1000.0,0.00022721,2]
[362826015,1748473843843,-430.0,0.00022736,2]
[362826016,1748473843853,-430.0,0.00022736,2]
[362826017,1748473843864,-392.04,0.00022736,2]
[362826018,1748473843874,-56.25901773,0.00022737,2]
[362826021,1748473846767,-430.0,0.00019999,2]
[362826022,1748473846779,-509.17695762,0.0002027,2]
[362826023,1748473846790,-430.0,0.00020273,2]
[362826024,1748473846802,-430.0,0.00020547,2]
[362826025,1748473846814,-150.28,0.0002109,10]
[362826026,1748473846825,-373.74098227,0.00022737,2]
[362826027,1748473846836,-516.51,0.00022737,2]
[362826028,1748473846847,-430.0,0.00022737,2]
[362826029,1748473846858,-521.68,0.00022737,2]
[362826030,1748473846869,-187.38,0.00022737,2]
[362826031,1748473846880,-575.86,0.00022737,2]
[362826032,1748473846891,-1240.4,0.00022739,2]
[362826033,1748473846904,-430.0,0.00022739,2]
[362826034,1748473846927,-430.0,0.00022739,2]
[362826035,1748473846943,-465.2,0.00022739,2]
[362826036,1748473846958,-560.57,0.00022739,2]
[362826037,1748473846973,-201.9,0.00022739,2]
[362826038,1748473846988,-348.49,0.00022739,2]
[362826039,1748473847004,-1148.24,0.00022739,2]
[362826040,1748473847016,-739.89,0.00022747,4]
[362826041,1748473847027,-283.221702,0.0002282,2]
[362826042,1748473847038,-601.35257925,0.00022831,8]
[362826043,1748473847048,-739.89,0.00022847,6]
[362826044,1748473847058,-2500.0,0.00022886,2]
[362826045,1748473847068,-165.96162362,0.000229,2]
[362826046,1748473847078,-151.99151904,0.000229,2]
[362826047,1748473847088,-207.4,0.0002292,2]
[362826048,1748473847098,-739.89,0.00022947,5]
[362826049,1748473847107,-352.90796809,0.00022973,2]
[362826050,1748473847117,-500.0,0.00022973,2]
[362826051,1748473847127,-500.0,0.00022973,2]
[362826052,1748473847136,-2116.67047056,0.00023,2]
[362826053,1748473847915,-5154.97817258,0.00023,2]
[362826054,1748473847928,-17225.48665702,0.00023,2]
[362826055,1748473847937,-20088.43971449,0.00023,3]
[362826056,1748473847947,-2000.0,0.00023,2]
[362826057,1748473847957,-2000.0,0.00023,2]
[362826058,1748473847967,-1778.1,0.00023,7]
[362826059,1748473847977,-153497.37,0.00023,7]
[362826060,1748473847986,-9406.86,0.00023,2]
[362826061,1748473847996,-2000.0,0.00023,2]
[362826062,1748473848005,-212.66609673,0.00023,3]
[362826063,1748473848015,-842.5625,0.00023,3]
[362826064,1748473848029,-229.229959,0.00023,3]
[362826065,1748473848038,-1000.0,0.00023,2]
[362826066,1748473848048,-430.0,0.0002301,2]
[362826067,1748473848058,-430.0,0.0002301,2]
[362826068,1748473848068,-430.0,0.00023011,2]
[362826069,1748473848077,-516.51,0.00023011,2]
[362826070,1748473848087,-430.0,0.00023011,2]
[362826071,1748473848097,-521.68,0.00023011,2]
[362826072,1748473848107,-575.86,0.00023011,2]
[362826073,1748473848118,-500.0,0.00023013,2]
[362826074,1748473848128,-1240.4,0.00023013,2]
[362826075,1748473848139,-430.0,0.00023013,2]
[362826076,1748473848151,-430.0,0.00023013,2]
[362826077,1748473848160,-465.2,0.00023013,2]
[362826078,1748473848170,-560.57,0.00023013,2]
[362826079,1748473848179,-1148.24,0.00023013,2]
[362826080,1748473848189,-341.0,0.00023014,7]
[362826081,1748473848198,-2000.0,0.00023026,2]
[362826082,1748473848208,-10803.62,0.00023026,2]
[362826083,1748473848218,-601.35257925,0.00023038,8]
[362826084,1748473848228,-739.89,0.00023047,4]
[362826085,1748473848237,-1500.0,0.00023068,2]
[362826086,1748473848247,-1500.0,0.00023068,2]
[362826087,1748473848257,-4218.72,0.000231,7]
[362826088,1748473848267,-739.89,0.00023147,6]
[362826089,1748473848276,-9375.57379564,0.000232,2]
[362826090,1748474049339,160.897544,0.00013699,2]
[362826095,1748474260725,2500.0,0.00024649,120]
[362826101,1748474313640,5000.0,0.00024658,120]
[362826102,1748474334998,4000.0,0.00021918,30]
[362826116,1748475032047,-5000.0,0.00016436,2]
[362826117,1748475032057,-250.0,0.00018048,2]
[362826118,1748475032066,-318.213038,0.00019178,2]
[362826119,1748475032078,-545.98580768,0.000199,2]
[362826120,1748475032088,-720.0,0.00019995,2]
[362826121,1748475032098,-300.0,0.00019996,2]
[362826122,1748475032108,-300.0,0.00019996,2]
[362826123,1748475032117,-166.95468131,0.00019997,2]
[362826124,1748475032127,-430.0,0.00019997,2]
[362826125,1748475032136,-430.0,0.00019997,2]
[362826126,1748475032145,-1325.63,0.00019997,2]
[362826128,1748475032154,-430.0,0.00019997,2]
[362826130,1748475032164,-246.61382571,0.00019997,2]
[362826132,1748475032173,-430.0,0.00019997,2]
[362826134,1748475032182,-1446.92,0.00019997,2]
[362826136,1748475032191,-430.0,0.00019997,2]
[362826138,1748475032200,-430.0,0.00019997,2]
[362826140,1748475032209,-430.0,0.00019997,2]
[362826142,1748475032218,-430.0,0.00019997,2]
[362826144,1748475032227,-658.61,0.00019997,2]
[362826146,1748475032236,-232.7082935,0.00019997,2]
[362826148,1748475032246,-430.0,0.00019997,2]
[362826150,1748475032255,-430.0,0.00019997,2]
[362826152,1748475032264,-430.0,0.00019997,2]
[362826154,1748475032273,-430.0,0.00019997,2]
[362826156,1748475032282,-430.0,0.00019997,2]
[362826158,1748475032291,-831.83,0.00019997,2]
[362826160,1748475032300,-430.0,0.00019997,2]
[362826162,1748475032310,-430.0,0.00019997,2]
[362826164,1748475032319,-1188.75,0.00019997,2]
[362826166,1748475032327,-430.0,0.00019997,2]
[362826168,1748475032336,-430.0,0.00019997,2]
[362826170,1748475032345,-430.0,0.00019997,2]
[362826172,1748475032355,-430.0,0.00019997,2]
[362826174,1748475032365,-160.0,0.00019998,2]
[362826176,1748475032374,-228.86,0.00019998,2]
[362826178,1748475032384,-352.57628775,0.00019998,2]
[362826179,1748475032393,-430.0,0.00019998,2]
[362826180,1748475032402,-430.0,0.00019998,2]
[362826181,1748475032411,-430.0,0.00019998,2]
[362826182,1748475032421,-430.0,0.00019998,2]
[362826183,1748475032430,-430.0,0.00019998,2]
[362826184,1748475032439,-430.0,0.00019998,2]
[362826185,1748475032449,-430.0,0.00019998,2]
[362826186,1748475032458,-430.0,0.00019998,2]
[362826187,1748475032468,-430.0,0.00019998,2]
[362826188,1748475032477,-430.0,0.00019998,2]
[362826189,1748475032486,-430.0,0.00019998,2]
[362826190,1748475032495,-430.0,0.00019998,2]
[362826191,1748475032504,-157.69,0.00019998,2]
[362826192,1748475032513,-430.0,0.00019998,2]
[362826193,1748475032522,-430.0,0.00019998,2]
[362826194,1748475032532,-430.0,0.00019998,2]
[362826195,1748475032541,-430.0,0.00019998,2]
[362826196,1748475032551,-430.0,0.00019998,2]
[362826197,1748475032560,-430.0,0.00019998,2]
[362826198,1748475032569,-430.0,0.00019998,2]
[362826199,1748475032578,-430.0,0.00019998,2]
[362826200,1748475032587,-430.0,0.00019998,2]
[362826201,1748475032597,-450.0,0.00019998,2]
[362826202,1748475032607,-430.0,0.00019998,2]
[362826203,1748475032616,-430.0,0.00019998,2]
[362826204,1748475032625,-430.0,0.00019998,2]
[362826205,1748475032635,-357.35223421,0.00019998,2]
[362826206,1748475032644,-430.0,0.00019998,2]
[362826207,1748475032653,-430.0,0.00019998,2]
[362826208,1748475032662,-430.0,0.00019998,2]
[362826209,1748475032672,-430.0,0.00019998,2]
[362826210,1748475032681,-430.0,0.00019998,2]
[362826211,1748475032691,-202.66,0.00019998,2]
[362826212,1748475032700,-430.0,0.00019998,2]
[362826213,1748475032710,-430.0,0.00019998,2]
[362826214,1748475032719,-430.0,0.00019998,2]
[362826215,1748475032728,-430.0,0.00019998,2]
[362826216,1748475032738,-430.0,0.00019998,2]
[362826217,1748475032747,-430.0,0.00019998,2]
[362826218,1748475032757,-430.0,0.00019998,2]
[362826219,1748475032766,-614.88,0.00019998,2]
[362826220,1748475032776,-430.0,0.00019998,2]
[362826221,1748475032785,-430.0,0.00019998,2]
[362826222,1748475032794,-404.51258934,0.00019998,2]
[362826223,1748475032804,-430.0,0.00019998,2]
[362826224,1748475032813,-770.24,0.00019998,2]
[362826225,1748475032823,-450.0,0.00019998,2]
[362826226,1748475032832,-430.0,0.00019998,2]
[362826227,1748475032842,-430.0,0.00019998,2]
[362826228,1748475032852,-430.0,0.00019998,2]
[362826229,1748475032862,-450.0,0.00019998,2]
[362826230,1748475032871,-302.85,0.00019998,2]
[362826231,1748475032881,-430.0,0.00019998,2]
[362826232,1748475032890,-430.0,0.00019998,2]
[362826233,1748475032899,-486.9,0.00019998,2]
[362826234,1748475032909,-423.24161968,0.00019999,2]
[362826235,1748475032918,-842.5625,0.00019999,2]